bitfinex/quotes_BTCUSD_20251219
["timestamp","ask_amount","ask_price","bid_price","bid_amount"]
[1766183455432,0.0113281,88276.0,88268.0,0.1799]
[1766183455841,0.08155956,88278.0,88268.0,0.1799]
[1766183455842,0.01359188,88278.0,88268.0,0.1799]
[1766183456448,0.01304188,88278.0,88268.0,0.1799]
[1766183456755,0.27266,88265.0,88250.0,0.1799]
[1766183456956,0.00568,88267.0,88259.0,0.1799]
[1766183457110,0.00568,88267.0,88260.0,0.1799]
[1766183457767,0.27266,88274.0,88260.0,0.1799]
[1766183457904,0.00568,88271.0,88262.0,0.1799]
[1766183459848,0.01132849,88273.0,88262.0,0.1799]
[1766183460232,0.27266,88274.0,88262.0,0.1799]
[1766183460431,0.27266,88274.0,88254.0,0.01133093]
[1766183460432,0.01133105,88253.0,88244.0,0.28343]
[1766183460638,0.01133105,88253.0,88232.0,0.01173375]
[1766183460639,0.01133003,88261.0,88249.0,0.1799]
[1766183461381,0.00568,88262.0,88251.0,0.1799]
[1766183461712,0.01359188,88263.0,88238.0,0.0004]
[1766183461713,0.02492165,88263.0,88238.0,0.0004]
[1766183461866,0.01359188,88263.0,88251.0,0.1799]
[1766183462066,0.00568,88270.0,88264.0,0.00049405]
[1766183462384,0.01700887,88270.0,88269.0,0.00033967]
[1766183462582,0.00568,88270.0,88258.0,0.1799]
[1766183462792,0.000339,88269.0,88258.0,0.1799]
[1766183462995,0.00568,88270.0,88258.0,0.1799]
[1766183463193,0.00568,88270.0,88259.0,0.00568]
[1766183464262,0.00568,88270.0,88260.0,0.20525]
[1766183464470,0.00568,88270.0,88261.0,0.20525]
[1766183465509,0.00568,88270.0,88260.0,0.29229]
[1766183465974,0.00055,88260.0,88259.0,0.00568]
[1766183466277,0.03341,88263.0,88256.0,0.00568]
[1766183466700,0.02492152,88264.0,88257.0,0.20525]
[1766183466701,0.01359188,88264.0,88257.0,0.20525]
[1766183467303,0.02259,88263.0,88237.0,0.0004]
[1766183467466,0.01359188,88247.0,88241.0,0.00608]
[1766183467641,0.02259,88253.0,88247.0,0.000549]
[1766183467842,0.02259,88253.0,88241.0,0.00608]
[1766183470873,0.02259,88253.0,88241.0,0.0174126]
[1766183471348,0.02259,88253.0,88252.0,0.00052505]
[1766183471557,0.02259,88253.0,88252.0,5e-08]
[1766183473614,0.022066,88253.0,88252.0,5e-08]
[1766183474646,0.00568,88257.0,88252.0,5e-08]
[1766183474830,0.01701054,88257.0,88242.0,0.49754]
[1766183475025,0.01701054,88257.0,88243.0,0.20525]
[1766183475232,0.00568,88257.0,88243.0,0.20525]
[1766183475624,0.03151,88257.0,88243.0,0.20525]
[1766183477924,0.77109349,88262.0,88243.0,0.20525]
[1766183477925,0.03052842,88274.0,88263.0,0.01132977]
[1766183478120,0.03052842,88274.0,88260.0,0.29229]
[1766183478121,0.02444213,88287.0,88270.0,0.01132887]
[1766183478343,0.02444213,88287.0,88264.0,0.77677349]
[1766183478344,0.01359188,88278.0,88272.0,0.20525]
[1766183478566,0.01359188,88278.0,88272.0,0.21093]
[1766183478797,0.01359188,88278.0,88273.0,0.20525]
[1766183479028,1.88e-06,88278.0,88273.0,0.20525]
[1766183479503,0.01132682,88286.0,88274.0,0.4899]
[1766183479744,0.01132695,88285.0,88275.0,0.20006]
[1766183479973,0.07211669,88287.0,88275.0,0.20006]
[1766183480199,0.01132682,88286.0,88275.0,0.20006]
[1766183480458,0.01359188,88278.0,88275.0,0.199511]
[1766183480966,0.01359188,88278.0,88272.0,0.00568]
[1766183480967,0.02491973,88278.0,88272.0,0.00568]
[1766183481199,0.02444213,88286.0,88272.0,0.29552]
[1766183481404,0.07914,88286.0,88272.0,0.29552]
[1766183481623,0.09046682,88286.0,88272.0,0.29552]
[1766183482097,0.09079695,88285.0,88272.0,0.29552]
[1766183482343,0.01132708,88284.0,88272.0,0.29552]
[1766183482755,0.0113272,88283.0,88272.0,0.28984]
[1766183482968,0.07947,88284.0,88272.0,0.28984]
[1766183483168,0.07947,88284.0,88274.0,0.01132836]
[1766183483294,0.07947,88284.0,88273.0,0.20006]
[1766183485754,0.07947,88284.0,88268.0,0.20006]
[1766183485953,0.01359188,88278.0,88268.0,0.20006]
[1766183491198,0.01359188,88278.0,88270.0,0.20006]
[1766183491354,0.01359188,88278.0,88270.0,0.4899]
[1766183491556,0.01359188,88278.0,88271.0,0.20006]
[1766183493373,0.01304188,88278.0,88271.0,0.20006]
[1766183493590,0.01304188,88278.0,88268.0,0.01132913]
[1766183493789,0.01304188,88278.0,88271.0,0.4899]
[1766183494039,0.07947,88284.0,88272.0,0.20006]
[1766183494360,0.00568,88287.0,88275.0,0.19395]
[1766183494567,0.01359188,88289.0,88278.0,0.01132785]
[1766183494752,0.00568,88292.0,88280.0,0.50218]
[1766183494888,0.01359188,88291.0,88280.0,0.19395]
[1766183495088,0.01359188,88291.0,88281.0,0.19395]
[1766183503012,0.01359188,88291.0,88281.0,0.50218]
[1766183509806,0.00568,88292.0,88281.0,0.51350746]
[1766183510015,0.00568,88292.0,88282.0,0.01132733]
[1766183510386,0.00568,88292.0,88283.0,0.19395]
[1766183512481,0.00568,88296.0,88286.0,0.19395]
[1766183512617,0.13999592,88305.0,88290.0,0.19395]
[1766183512618,0.10596,88304.0,88290.0,0.19395]
[1766183512825,0.01359188,88308.0,88297.0,0.19395]
[1766183513045,0.00568,88309.0,88295.0,0.01132566]
[1766183513249,0.00568,88309.0,88298.0,0.19395]
[1766183513447,0.00568,88309.0,88300.0,0.19395]
[1766183513656,0.00568,88309.0,88299.0,0.30823]
[1766183513879,0.11214,88309.0,88299.0,0.30823]
[1766183514076,0.11214,88309.0,88295.0,0.19395]
[1766183514780,0.11214,88309.0,88296.0,0.01132554]
[1766183514939,0.10646,88309.0,88296.0,0.00568]
[1766183515139,0.11214,88309.0,88296.0,0.19963]
[1766183517906,0.01132413,88307.0,88296.0,0.19963]
[1766183519482,0.01132425,88306.0,88296.0,0.19963]
[1766183519819,0.10124,88303.0,88297.0,0.00568]
[1766183520022,0.10124,88303.0,88293.0,0.00568]
[1766183520432,0.11256464,88303.0,88293.0,0.00568]
[1766183520640,0.10124,88303.0,88293.0,0.00568]
[1766183521241,0.00568,88304.0,88293.0,0.19963]
[1766183521461,0.00568,88304.0,88294.0,0.19395]
[1766183521662,0.11434451,88304.0,88293.0,0.00568]
[1766183521862,0.15964262,88304.0,88293.0,0.00568]
[1766183522037,0.01132477,88302.0,88293.0,0.00568]
[1766183522242,0.11434451,88304.0,88293.0,0.00568]
[1766183522464,0.01132464,88303.0,88293.0,0.00568]
[1766183523245,0.01132477,88302.0,88293.0,0.00568]
[1766183523880,0.11434451,88304.0,88294.0,0.19395]
[1766183524275,0.01132464,88303.0,88294.0,0.19395]
[1766183524693,0.10302,88304.0,88294.0,0.19395]
[1766183524896,0.10302,88304.0,88295.0,0.18995]
[1766183524897,0.00568,88304.0,88295.0,0.18995]
[1766183529027,0.00568,88304.0,88294.0,0.31539]
[1766183531594,0.0982,88305.0,88295.0,0.01132566]
[1766183531798,0.04073743,88327.0,88293.0,0.00532779]
[1766183531799,0.02444617,88319.0,88307.0,0.18995]
[1766183531955,0.00568,88318.0,88310.0,0.18995]
[1766183532137,0.00568,88318.0,88306.0,0.18995]
[1766183532336,0.11521272,88318.0,88306.0,0.18995]
[1766183532541,0.09821,88317.0,88306.0,0.18995]
[1766183532898,0.00568,88322.0,88306.0,0.18995]
[1766183533095,0.09825,88322.0,88309.0,0.18995]
[1766183533253,0.1095722,88322.0,88308.0,0.31539]
[1766183533437,0.09257,88320.0,88304.0,0.18995]
[1766183533899,0.09257,88320.0,88305.0,0.01132438]
[1766183534097,0.09257,88320.0,88307.0,0.18995]
[1766183534656,0.01132259,88319.0,88307.0,0.18995]
[1766183534857,0.10418259,88319.0,88305.0,0.31539]
[1766183535406,0.10418284,88317.0,88305.0,0.31539]
[1766183535582,0.09854,88317.0,88305.0,0.31539]
[1766183537804,0.08715,88305.0,88299.0,0.00568]
[1766183538008,0.08714,88313.0,88299.0,0.00568]
[1766183538302,0.08714,88313.0,88299.0,0.19563]
[1766183538512,0.08714,88313.0,88300.0,0.18995]
[1766183539002,0.08714,88313.0,88300.0,0.20127502]
[1766183539409,0.01359188,88314.0,88302.0,0.19076]
[1766183539616,0.01359188,88314.0,88305.0,0.19076]
[1766183539811,0.01359188,88314.0,88300.0,0.01132502]
[1766183539812,0.01359188,88314.0,88306.0,0.19076]
[1766183539962,0.01359188,88314.0,88307.0,0.19076]
[1766183540974,0.01359188,88314.0,88307.0,0.19021]
[1766183542677,0.00568,88317.0,88307.0,0.19021]
[1766183542824,0.005131,88317.0,88307.0,0.20153413]
[1766183543028,0.005131,88317.0,88310.0,0.19076]
[1766183543356,0.005131,88317.0,88311.0,0.19076]
[1766183543557,0.01132169,88326.0,88311.0,0.19076]
[1766183543761,0.01359188,88328.0,88311.0,0.19076]
[1766183543762,0.00027151,88316.0,88312.0,0.19076]
[1766183544091,5.1e-07,88316.0,88312.0,0.19076]
[1766183545116,5.1e-07,88316.0,88312.0,0.19049]
[1766183545392,5.1e-07,88316.0,88311.0,0.32053]
[1766183547750,5.1e-07,88316.0,88305.0,0.32053]
[1766183547950,5.1e-07,88316.0,88306.0,0.19076]
[1766183550843,5.1e-07,88316.0,88307.0,0.19076]
[1766183551195,5.1e-07,88316.0,88310.0,0.19076]
[1766183553963,5.1e-07,88316.0,88311.0,0.19076]
[1766183554194,5.1e-07,88316.0,88313.0,0.18491]
[1766183554714,5.1e-07,88316.0,88313.0,0.29411]
[1766183554840,5.1e-07,88316.0,88314.0,0.18491]
[1766183556433,5.1e-07,88316.0,88310.0,0.18491]
[1766183556558,5.1e-07,88316.0,88312.0,0.18491]
[1766183558907,0.00055,88312.0,88309.0,0.00568]
[1766183559446,5.1e-07,88316.0,88309.0,0.00568]
[1766183559805,0.08709,88315.0,88309.0,0.00568]
[1766183560010,0.08709,88315.0,88307.0,0.00568]
[1766183561628,5.1e-07,88316.0,88315.0,0.479569]
[1766183561831,5.1e-07,88316.0,88315.0,0.53618452]
[1766183562035,5.1e-07,88316.0,88315.0,0.53563552]
[1766183563034,0.1377622,88339.0,88325.0,0.29411]
[1766183563035,0.02448145,88339.0,88325.0,0.29411]
[1766183563234,0.00568,88338.0,88331.0,0.29411]
[1766183563454,0.00568,88337.0,88332.0,0.18436]
[1766183563792,0.00568,88337.0,88324.0,0.29411]
[1766183563968,0.01700028,88337.0,88324.0,0.29411]
[1766183564141,0.00568,88337.0,88324.0,0.29411]
[1766183564968,0.01700028,88337.0,88324.0,0.29411]
[1766183565527,0.00568,88337.0,88326.0,0.18491]
[1766183566850,0.01132041,88336.0,88326.0,0.18491]
[1766183567044,0.01359188,88334.0,88326.0,0.18491]
[1766183567473,0.00568,88344.0,88334.0,0.00049821]
[1766183567784,0.8586593,88344.0,88334.0,0.00049821]
[1766183567933,0.02444846,88343.0,88332.0,0.18491]
[1766183568133,0.03576797,88343.0,88332.0,0.18491]
[1766183568391,0.01131951,88343.0,88332.0,0.18491]
[1766183568690,0.84733992,88344.0,88332.0,0.18491]
[1766183568983,0.00052447,88333.0,88332.0,0.18491]
[1766183569162,2.547e-05,88333.0,88332.0,0.18491]
[1766183569746,2.547e-05,88333.0,88332.0,0.47902]
[1766183569953,2.547e-05,88337.0,88323.0,0.01700207]
[1766183570264,2.547e-05,88337.0,88325.0,0.18491]
[1766183571599,0.00568,88342.0,88326.0,0.18491]
[1766183572115,0.01132015,88338.0,88327.0,0.29411]
[1766183572350,0.01132002,88339.0,88330.0,0.18491]
[1766183572874,0.01132028,88337.0,88330.0,0.184361]
[1766183573105,0.01132041,88336.0,88330.0,0.184361]
[1766183573502,0.01132028,88337.0,88330.0,0.184361]
[1766183573750,0.01132041,88336.0,88330.0,0.184361]
[1766183574402,0.01132028,88337.0,88330.0,0.184361]
[1766183575082,0.01132028,88337.0,88330.0,0.184361]
[1766183575436,0.05660206,88336.0,88330.0,0.184361]
[1766183575656,0.01132028,88337.0,88330.0,0.184361]
[1766183577084,0.05684559,88341.0,88330.0,0.184361]
[1766183577254,0.0113199,88340.0,88331.0,0.18491]
[1766183578375,0.77164664,88341.0,88331.0,0.29411]
[1766183578572,0.0113199,88340.0,88332.0,0.18491]
[1766183578894,0.0113199,88340.0,88332.0,0.29411]
[1766183579081,0.0113199,88340.0,88333.0,0.18491]
[1766183580299,0.77164664,88341.0,88333.0,0.18491]
[1766183580933,0.78296641,88341.0,88333.0,0.18491]
[1766183581407,0.01132041,88336.0,88333.0,0.18491]
[1766183581623,0.01132002,88339.0,88333.0,0.18491]
[1766183582184,0.0113199,88340.0,88333.0,0.18491]
[1766183582658,0.0113199,88340.0,88333.0,0.47902]
[1766183582838,0.01132002,88339.0,88333.0,0.47902]
[1766183583024,0.0113199,88340.0,88333.0,0.47902]
[1766183583625,0.01156649,88341.0,88333.0,0.47902]
[1766183583834,0.0113199,88340.0,88328.0,0.00568]
[1766183584044,0.0113199,88340.0,88331.0,0.32155]
[1766183584247,0.0113199,88340.0,88332.0,0.16966]
[1766183584493,0.01156649,88341.0,88328.0,0.00568]
[1766183584494,0.01156649,88341.0,88334.0,0.16966]
[1766183584622,0.01156649,88341.0,88335.0,0.16966]
[1766183585025,0.0113199,88340.0,88335.0,0.16966]
[1766183585327,0.01156649,88341.0,88335.0,0.16966]
[1766183585575,0.06816538,88341.0,88335.0,0.16966]
[1766183585781,0.01156649,88341.0,88335.0,0.16966]
[1766183586357,0.0113199,88340.0,88335.0,0.16966]
[1766183586567,0.01156649,88341.0,88335.0,0.16966]
[1766183586889,0.0113199,88340.0,88335.0,0.16966]
[1766183587093,0.01156649,88341.0,88335.0,0.16966]
[1766183587395,0.0113199,88340.0,88335.0,0.16966]
[1766183588012,0.01156649,88341.0,88335.0,0.16966]
[1766183588176,0.0113199,88340.0,88335.0,0.16966]
[1766183588892,0.01132002,88339.0,88335.0,0.16966]
[1766183589090,0.01156649,88341.0,88335.0,0.16966]
[1766183589291,0.0113199,88340.0,88335.0,0.16966]
[1766183592028,0.01156649,88341.0,88335.0,0.16966]
[1766183592359,0.01156649,88341.0,88335.0,0.32155]
[1766183592735,0.01132002,88339.0,88335.0,0.32155]
[1766183592934,0.0113199,88340.0,88335.0,0.32155]
[1766183593340,0.01156649,88341.0,88335.0,0.32155]
[1766183594414,0.00024672,88341.0,88335.0,0.32155]
[1766183595426,0.00024672,88341.0,88336.0,0.16966]
[1766183596655,0.00024672,88341.0,88328.0,0.00568]
[1766183596656,0.00055,88336.0,88328.0,0.00568]
[1766183597019,0.00055,88336.0,88328.0,0.17534]
[1766183597232,0.01132028,88337.0,88329.0,0.16966]
[1766183597527,0.78272007,88338.0,88329.0,0.16966]
[1766183597528,0.78272007,88338.0,88330.0,0.16966]
[1766183598272,0.01132041,88336.0,88330.0,0.16966]
[1766183598505,0.78272007,88338.0,88330.0,0.16966]
[1766183599901,0.01132028,88337.0,88330.0,0.16966]
[1766183600305,0.78272007,88338.0,88330.0,0.16966]
[1766183600528,0.77139992,88338.0,88330.0,0.16966]
[1766183600728,0.77139992,88338.0,88332.0,0.16939]
[1766183600924,0.0113199,88340.0,88332.0,0.16939]
[1766183601505,0.01156649,88341.0,88332.0,0.16939]
[1766183601725,0.00024672,88341.0,88333.0,0.30075]
[1766183602094,0.87160992,88350.0,88339.0,0.16939]
[1766183602239,0.011319,88347.0,88341.0,0.169636]
[1766183602421,0.01131887,88348.0,88341.0,0.16939]
[1766183603048,0.01156545,88349.0,88341.0,0.16939]
[1766183603469,0.00024671,88349.0,88341.0,0.16939]
[1766183603709,0.011319,88347.0,88341.0,0.16939]
[1766183604391,0.01131887,88348.0,88341.0,0.16939]
[1766183604617,0.01131913,88346.0,88341.0,0.16939]
[1766183604819,0.01131887,88348.0,88341.0,0.16939]
[1766183605015,0.011319,88347.0,88341.0,0.16939]
[1766183606017,0.01131913,88346.0,88341.0,0.16939]
[1766183606199,0.01156545,88349.0,88341.0,0.16939]
[1766183606419,0.01131887,88348.0,88341.0,0.16939]
[1766183606826,0.00024671,88349.0,88341.0,0.47014]
[1766183607020,0.00024671,88349.0,88342.0,0.16939]
[1766183607242,0.00024671,88349.0,88344.0,0.16939]
[1766183607420,0.00568,88349.0,88336.0,0.16939]
[1766183607620,0.01131874,88349.0,88338.0,0.30075]
[1766183607830,0.07359134,88351.0,88342.0,0.30075]
[1766183608043,0.01131861,88350.0,88343.0,0.16939]
[1766183608354,0.01131861,88350.0,88344.0,0.16939]
[1766183608761,0.01699849,88351.0,88344.0,0.16939]
[1766183609575,0.00568,88353.0,88348.0,0.16939]
[1766183609869,0.00568,88353.0,88349.0,0.16939]
[1766183610854,0.0113181,88354.0,88349.0,0.16939]
[1766183611057,0.00568,88355.0,88349.0,0.16939]
[1766183611260,0.01699797,88355.0,88349.0,0.16939]
[1766183611496,0.01699797,88355.0,88335.0,0.01132054]
[1766183611497,0.29372,88371.0,88355.0,0.000549]
[1766183611818,0.29372,88371.0,88359.0,0.16939]
[1766183611819,0.01131644,88367.0,88359.0,0.16939]
[1766183611974,0.01131656,88366.0,88359.0,0.16939]
[1766183613588,0.01131682,88364.0,88359.0,0.16884]
[1766183613789,0.0002,88372.0,88364.0,0.000549]
[1766183614136,0.01131516,88377.0,88364.0,0.000549]
[1766183614137,0.06789421,88373.0,88370.0,0.30075]
[1766183614473,0.01131592,88371.0,88359.0,0.30917]
[1766183614875,0.01131618,88369.0,88363.0,0.30917]
[1766183615119,0.01131605,88370.0,88364.0,0.19318]
[1766183615418,0.06789573,88371.0,88364.0,0.30917]
[1766183615419,0.01131592,88371.0,88364.0,0.30917]
[1766183615586,0.01131592,88371.0,88365.0,0.19318]
[1766183615782,0.0113158,88372.0,88365.0,0.19318]
[1766183615983,0.01131567,88373.0,88365.0,0.19318]
[1766183616463,0.01131541,88375.0,88366.0,0.19318]
[1766183616625,0.01131554,88374.0,88366.0,0.19318]
[1766183616828,0.01131592,88371.0,88366.0,0.19318]
[1766183619190,0.0113158,88372.0,88366.0,0.19318]
[1766183619387,0.01131592,88371.0,88366.0,0.19318]
[1766183620533,0.01131567,88373.0,88367.0,0.50235]
[1766183620658,0.01131592,88371.0,88367.0,0.50235]
[1766183621010,0.06789544,88372.0,88367.0,0.50235]
[1766183621192,0.0113158,88372.0,88367.0,0.50235]
[1766183621506,0.00058583,88368.0,88367.0,0.50235]
[1766183621714,3.683e-05,88368.0,88363.0,0.30917]
[1766183621890,0.00568,88372.0,88366.0,0.30917]
[1766183622093,0.00568,88372.0,88367.0,0.19318]
[1766183622709,0.00568,88372.0,88367.0,0.30917]
[1766183622856,0.00568,88372.0,88368.0,0.19318]
[1766183624624,0.00568,88372.0,88370.0,0.19318]
[1766183625239,0.01699541,88375.0,88370.0,0.19318]
[1766183625392,0.0678916,88377.0,88370.0,0.19318]
[1766183625591,0.01131528,88376.0,88370.0,0.19318]
[1766183625813,0.01131541,88375.0,88370.0,0.19318]
[1766183626015,0.01131528,88376.0,88370.0,0.19318]
[1766183626428,0.00568,88377.0,88370.0,0.19318]
[1766183626931,0.0002,88380.0,88377.0,0.00055]
[1766183627514,0.0002,88380.0,88376.0,0.19318]
[1766183627920,0.00031422,88377.0,88376.0,0.19318]
[1766183628285,0.31435,88386.0,88378.0,0.19318]
[1766183628557,0.00568,88387.0,88378.0,0.19318]
[1766183628934,0.011314,88386.0,88378.0,0.19318]
[1766183629080,0.011314,88386.0,88363.0,0.01131695]
[1766183629081,0.00568,88387.0,88356.0,0.03399986]
[1766183629294,0.01131656,88366.0,88352.0,0.19318]
[1766183629490,0.01131656,88366.0,88332.0,0.01359188]
[1766183629491,0.32566669,88365.0,88355.0,0.19318]
[1766183629700,0.32566669,88365.0,88355.0,0.19886]
[1766183629907,0.31435,88365.0,88356.0,0.19318]
[1766183630540,0.01131682,88364.0,88356.0,0.19318]
[1766183630972,0.32566669,88365.0,88356.0,0.19318]
[1766183631176,0.01131669,88365.0,88356.0,0.19318]
[1766183631383,0.01131669,88365.0,88357.0,0.19318]
[1766183631644,0.01131656,88366.0,88357.0,0.19318]
[1766183634235,0.01131669,88365.0,88357.0,0.19318]
[1766183634446,0.01131656,88366.0,88357.0,0.19318]
[1766183634676,0.01131695,88363.0,88357.0,0.19318]
[1766183634880,0.01131656,88366.0,88357.0,0.19318]
[1766183635287,0.01131669,88365.0,88357.0,0.19318]
[1766183635714,0.01131682,88364.0,88357.0,0.19318]
[1766183635912,0.01131669,88365.0,88357.0,0.19318]
[1766183636815,0.01131656,88366.0,88357.0,0.19318]
[1766183637222,0.01131631,88368.0,88357.0,0.19318]
[1766183637585,0.01131644,88367.0,88357.0,0.19318]
[1766183637792,0.01131631,88368.0,88357.0,0.19318]
[1766183638194,0.01131618,88369.0,88357.0,0.19318]
[1766183638387,0.01131631,88368.0,88357.0,0.19318]
[1766183638587,0.31435,88366.0,88355.0,0.00568]
[1766183638781,0.31435,88366.0,88351.0,0.19318]
[1766183639028,0.31435,88366.0,88344.0,0.0679162]
[1766183639029,0.01131669,88365.0,88353.0,0.19318]
[1766183639753,0.01131669,88365.0,88353.0,0.50235]
[1766183639934,0.01131669,88365.0,88354.0,0.19318]
[1766183640383,0.31435,88367.0,88354.0,0.19318]
[1766183640600,0.01131669,88365.0,88354.0,0.19318]
[1766183641238,0.01131656,88366.0,88354.0,0.19318]
[1766183642611,0.31435,88367.0,88354.0,0.19318]
[1766183643403,0.32566644,88367.0,88354.0,0.19318]
[1766183644033,0.01131721,88361.0,88354.0,0.19318]
[1766183644287,0.01131721,88361.0,88338.0,0.04532733]
[1766183644288,0.01131721,88361.0,88325.0,0.33932]
[1766183644289,0.34551951,88343.0,88325.0,0.33932]
[1766183644422,0.01132028,88337.0,88326.0,0.00568]
[1766183644618,0.01131964,88342.0,88326.0,0.00568]
[1766183644619,0.0679194,88340.0,88326.0,0.00568]
[1766183644871,0.01132002,88339.0,88326.0,0.00568]
[1766183645075,0.01132041,88336.0,88326.0,0.345]
[1766183645293,0.01132002,88339.0,88326.0,0.345]
[1766183645494,0.01132015,88338.0,88326.0,0.345]
[1766183645896,0.3455199,88340.0,88326.0,0.345]
[1766183646268,0.01132002,88339.0,88328.0,0.18745]
[1766183646481,0.01132002,88339.0,88329.0,0.18745]
[1766183646638,0.3455199,88340.0,88329.0,0.18745]
[1766183646864,0.01132015,88338.0,88329.0,0.18745]
[1766183647058,0.01132002,88339.0,88329.0,0.18745]
[1766183647513,0.3455199,88340.0,88329.0,0.18745]
[1766183647714,0.06792016,88339.0,88329.0,0.18745]
[1766183648018,0.01132015,88338.0,88329.0,0.18745]
[1766183649231,0.01132002,88339.0,88329.0,0.18745]
[1766183649850,0.01132015,88338.0,88329.0,0.18745]
[1766183650065,0.01131977,88341.0,88329.0,0.18745]
[1766183650811,0.3342,88342.0,88329.0,0.18745]
[1766183651013,0.0113199,88340.0,88329.0,0.18745]
[1766183651244,0.34551964,88342.0,88329.0,0.18745]
[1766183651632,0.0113199,88340.0,88329.0,0.18745]
[1766183652977,0.01131977,88341.0,88329.0,0.18745]
[1766183653183,0.0113199,88340.0,88329.0,0.18745]
[1766183653471,0.0113199,88340.0,88330.0,0.00568]
[1766183653641,0.01132002,88339.0,88330.0,0.00568]
[1766183653841,0.0113199,88340.0,88330.0,0.00568]
[1766183655019,0.01132002,88339.0,88330.0,0.00568]
[1766183655162,0.0113199,88340.0,88331.0,0.18745]
[1766183655362,0.01132002,88339.0,88331.0,0.18745]
[1766183655604,0.0113199,88340.0,88331.0,0.18745]
[1766183655826,0.01132015,88338.0,88331.0,0.18745]
[1766183656324,0.01132002,88339.0,88331.0,0.18745]
[1766183656917,0.0113199,88340.0,88331.0,0.18745]
[1766183657113,0.0113199,88340.0,88330.0,0.345]
[1766183657114,0.34552002,88339.0,88330.0,0.00568]
[1766183657297,0.3342,88339.0,88330.0,0.19313]
[1766183658532,0.0113199,88340.0,88330.0,0.19313]
[1766183658833,0.3455199,88340.0,88330.0,0.345]
[1766183659061,0.3455199,88340.0,88331.0,0.18745]
[1766183659809,0.3342,88340.0,88331.0,0.18745]
[1766183660207,0.3455199,88340.0,88331.0,0.18745]
[1766183660517,0.01132002,88339.0,88331.0,0.18745]
[1766183661123,0.3455199,88340.0,88331.0,0.18745]
[1766183661310,0.40211942,88340.0,88331.0,0.18745]
[1766183661508,0.01132002,88339.0,88330.0,0.345]
[1766183661993,0.01132015,88338.0,88331.0,0.18881]
[1766183662551,0.01132041,88336.0,88330.0,0.345]
[1766183662748,0.01132028,88337.0,88331.0,0.00568]
[1766183663796,0.01132054,88335.0,88331.0,0.00568]
[1766183664385,0.01132041,88336.0,88331.0,0.00568]
[1766183664583,0.34266,88338.0,88331.0,0.00568]
[1766183664782,0.01132002,88339.0,88331.0,0.00568]
[1766183664783,0.01132002,88339.0,88331.0,0.19449]
[1766183665382,0.01132041,88336.0,88331.0,0.19449]
[1766183665804,0.01132028,88337.0,88331.0,0.19449]
[1766183666182,0.01132041,88336.0,88331.0,0.19449]
[1766183666386,0.01132028,88337.0,88331.0,0.19449]
[1766183666725,0.01132015,88338.0,88331.0,0.19449]
[1766183666870,0.01132002,88339.0,88331.0,0.19449]
[1766183667272,0.01132015,88338.0,88331.0,0.19449]
[1766183667479,0.01132002,88339.0,88331.0,0.00568]
[1766183667714,0.05659825,88342.0,88332.0,0.18881]
[1766183667914,0.01131977,88341.0,88332.0,0.18881]
[1766183668775,0.34266,88342.0,88341.0,0.000549]
[1766183668958,0.00568,88346.0,88342.0,0.00055]
[1766183669359,0.00568,88346.0,88338.0,0.18881]
[1766183670720,0.005131,88346.0,88338.0,0.18881]
[1766183676524,0.340851,88346.0,88336.0,0.00568]
[1766183676676,0.01131925,88345.0,88336.0,0.00568]
[1766183677999,0.01131938,88344.0,88336.0,0.00568]
[1766183678868,0.0113199,88340.0,88336.0,0.005131]
[1766183679069,0.33572,88338.0,88336.0,1e-06]
[1766183679472,0.33572,88338.0,88328.0,0.00568]
[1766183683244,0.33572,88338.0,88290.0,0.00199998]
[1766183683370,0.34704131,88329.0,88311.0,0.01132361]
[1766183683722,0.77096511,88330.0,88310.0,0.00568]
[1766183683723,0.33572,88327.0,88310.0,0.00568]
[1766183683940,0.33572,88325.0,88310.0,0.00568]
[1766183685087,0.33572,88325.0,88310.0,0.01700374]
[1766183685287,0.34704182,88325.0,88310.0,0.00568]
[1766183685488,0.33572,88325.0,88310.0,0.00568]
[1766183686027,0.33572,88325.0,88310.0,0.01700374]
[1766183686227,0.33572,88325.0,88310.0,0.00568]
[1766183686610,0.33572,88325.0,88310.0,0.01700374]
[1766183687379,0.33572,88325.0,88310.0,0.00568]
[1766183687585,0.33572,88325.0,88311.0,0.01132361]
[1766183688250,0.33572,88325.0,88312.0,0.01132348]
[1766183688550,0.33572,88325.0,88310.0,0.01700374]
[1766183689104,0.33572,88325.0,88310.0,0.00568]
[1766183689317,0.33572,88323.0,88310.0,0.00568]
[1766183689715,0.33572,88323.0,88310.0,0.01700374]
[1766183689938,0.335171,88323.0,88313.0,0.1920601]
[1766183690404,0.335171,88323.0,88313.0,0.20338346]
[1766183691249,0.335171,88323.0,88314.0,0.01132323]
[1766183691464,0.335171,88323.0,88313.0,0.20338346]
[1766183691936,0.335171,88323.0,88314.0,0.01132323]
[1766183692170,0.335171,88323.0,88313.0,0.0002701]
[1766183692582,0.335171,88323.0,88314.0,0.01132323]
[1766183692806,0.335171,88323.0,88313.0,0.0002701]
[1766183693950,0.335171,88323.0,88313.0,0.01159346]
[1766183694171,0.335171,88323.0,88313.0,0.0002701]
[1766183694595,0.335171,88323.0,88313.0,0.01159346]
[1766183695224,0.335171,88323.0,88314.0,0.01132323]
[1766183695630,0.335171,88323.0,88313.0,0.01159346]
[1766183696050,0.335171,88323.0,88313.0,0.0002701]
[1766183696253,0.335171,88323.0,88313.0,0.01159346]
[1766183696460,0.335171,88323.0,88313.0,0.0002701]
[1766183696705,0.335171,88323.0,88313.0,0.01159346]
[1766183696884,0.335171,88323.0,88314.0,0.01132323]
[1766183697492,0.335171,88323.0,88313.0,0.0002701]
[1766183697694,0.335171,88323.0,88314.0,0.01132323]
[1766183698700,0.335171,88323.0,88313.0,0.0002701]
[1766183699323,0.335171,88323.0,88313.0,0.01159346]
[1766183699573,0.335171,88323.0,88313.0,0.0002701]
[1766183699778,0.335171,88323.0,88314.0,0.01132323]
[1766183700137,0.335171,88323.0,88315.0,0.0113231]
[1766183701323,0.335171,88323.0,88316.0,0.01132297]
[1766183701860,0.335171,88323.0,88315.0,0.0113231]
[1766183702097,0.335171,88323.0,88314.0,0.01132323]
[1766183702313,0.335171,88323.0,88316.0,0.01132297]